[Event "Titled Tuesday Blitz November 08 Early 2022"]
[White "Lohani, Sujana"]
[Black "Prohorov, Olexandr"]
[WhiteFideId "12311987"]
[BlackFideId "14105578"]
[WhiteElo "1691"]
[BlackElo "1993"]
[Result "0-1"]
[Round "03"]
[TimeControl "180+1"]
[Date "2022.11.09"]
[WhiteClock "0:00:01"]
[BlackClock "0:01:06"]

1. d4 {[%clk 0:02:31]}  g6 {[%clk 0:02:57]} 2. Nf3 {[%clk 0:02:26]}  Bg7 {[%clk 0:02:57]} 3. e4 {[%clk 0:02:22]}  c5 {[%clk 0:02:53]} 4. d5 {[%clk 0:02:21]}  d6 {[%clk 0:02:53]} 5. c4 {[%clk 0:02:19]}  e6 {[%clk 0:02:53]} 6. Be2 {[%clk 0:02:14]}  Ne7 {[%clk 0:02:51]} 7. O-O {[%clk 0:02:13]}  O-O {[%clk 0:02:50]} 8. Nc3 {[%clk 0:02:10]}  exd5 {[%clk 0:02:49]} 9. exd5 {[%clk 0:02:09]}  Nf5 {[%clk 0:02:45]} 10. Bg5 {[%clk 0:02:06]}  Qc7 {[%clk 0:02:37]} 11. Qc2 {[%clk 0:02:06]}  a6 {[%clk 0:02:35]} 12. Ne4 {[%clk 0:02:04]}  f6 {[%clk 0:02:30]} 13. Bf4 {[%clk 0:02:00]}  g5 {[%clk 0:02:26]} 14. Bg3 {[%clk 0:01:21]}  g4 {[%clk 0:02:17]} 15. Nfd2 {[%clk 0:01:08]}  Nxg3 {[%clk 0:02:11]} 16. Nxg3 {[%clk 0:01:04]}  f5 {[%clk 0:02:05]} 17. Nh5 {[%clk 0:01:01]}  f4 {[%clk 0:01:51]} 18. Nxg7 {[%clk 0:00:50]}  Qxg7 {[%clk 0:01:49]} 19. Ne4 {[%clk 0:00:49]}  Bf5 {[%clk 0:01:48]} 20. Bd3 {[%clk 0:00:47]}  Qg6 {[%clk 0:01:43]} 21. Rae1 {[%clk 0:00:34]}  Nd7 {[%clk 0:01:42]} 22. Qb3 {[%clk 0:00:18]}  Ne5 {[%clk 0:01:38]} 23. Bb1 {[%clk 0:00:16]}  Rab8 {[%clk 0:01:32]} 24. Qb6 {[%clk 0:00:15]}  Nxc4 {[%clk 0:01:29]} 25. Qc7 {[%clk 0:00:14]}  f3 {[%clk 0:01:24]} 26. Ng3 {[%clk 0:00:11]}  Bxb1 {[%clk 0:01:18]} 27. Rxb1 {[%clk 0:00:11]}  Nd2 {[%clk 0:01:18]} 28. Rbd1 {[%clk 0:00:08]}  Nxf1 {[%clk 0:01:18]} 29. Rxf1 {[%clk 0:00:08]}  fxg2 {[%clk 0:01:14]} 30. Kxg2 {[%clk 0:00:07]}  h5 {[%clk 0:01:12]} 31. Re1 {[%clk 0:00:07]}  h4 {[%clk 0:01:12]} 32. Ne4 {[%clk 0:00:06]}  h3+ {[%clk 0:01:10]} 33. Kg1 {[%clk 0:00:05]}  Qf5 {[%clk 0:01:09]} 34. Re2 {[%clk 0:00:02]}  Qf3 {[%clk 0:01:06]} 35. Rd2 {[%clk 0:00:01]}  Qg2# {[%clk 0:01:06]} 0-1


[Site "https://www.chess.com"]

[Event "Titled Tuesday Blitz November 08 Early 2022"]
[White "Luberanski, Jakub"]
[Black "Molina, Roberto Junio Brito"]
[WhiteFideId "21830509"]
[BlackFideId "2109450"]
[WhiteElo "2109"]
[BlackElo "2388"]
[Result "0-1"]
[Round "03"]
[TimeControl "180+1"]
[Date "2022.11.09"]
[WhiteClock "0:00:26"]
[BlackClock "0:01:01"]

1. d4 {[%clk 0:02:58]}  d5 {[%clk 0:02:59]} 2. c4 {[%clk 0:02:55]}  c6 {[%clk 0:02:59]} 3. Nc3 {[%clk 0:02:56]}  Nf6 {[%clk 0:02:58]} 4. Nf3 {[%clk 0:02:56]}  dxc4 {[%clk 0:02:58]} 5. g3 {[%clk 0:02:57]}  b5 {[%clk 0:02:58]} 6. Bg2 {[%clk 0:02:57]}  Bb7 {[%clk 0:02:58]} 7. Ne5 {[%clk 0:02:55]}  a6 {[%clk 0:02:58]} 8. O-O {[%clk 0:02:54]}  e6 {[%clk 0:02:58]} 9. a4 {[%clk 0:02:48]}  Nd5 {[%clk 0:02:57]} 10. e4 {[%clk 0:02:43]}  Nxc3 {[%clk 0:02:56]} 11. bxc3 {[%clk 0:02:44]}  Nd7 {[%clk 0:02:56]} 12. Nxd7 {[%clk 0:02:30]}  Qxd7 {[%clk 0:02:56]} 13. Qg4 {[%clk 0:02:20]}  f5 {[%clk 0:02:48]} 14. exf5 {[%clk 0:02:07]}  exf5 {[%clk 0:02:49]} 15. Re1+ {[%clk 0:02:07]}  Kf7 {[%clk 0:02:49]} 16. Qf3 {[%clk 0:02:05]}  Bd6 {[%clk 0:02:44]} 17. Bf4 {[%clk 0:01:59]}  Bxf4 {[%clk 0:02:39]} 18. Qxf4 {[%clk 0:02:00]}  Rhe8 {[%clk 0:02:38]} 19. Bh3 {[%clk 0:01:40]}  g6 {[%clk 0:02:37]} 20. g4 {[%clk 0:01:34]}  Kf6 {[%clk 0:02:03]} 21. Re5 {[%clk 0:01:24]}  Rxe5 {[%clk 0:01:52]} 22. dxe5+ {[%clk 0:01:22]}  Kg7 {[%clk 0:01:45]} 23. gxf5 {[%clk 0:01:22]}  gxf5 {[%clk 0:01:44]} 24. Bxf5 {[%clk 0:01:20]}  Qe7 {[%clk 0:01:42]} 25. Kh1 {[%clk 0:00:58]}  c5+ {[%clk 0:01:40]} 26. f3 {[%clk 0:00:58]}  Kh8 {[%clk 0:01:37]} 27. Rd1 {[%clk 0:00:56]}  Rf8 {[%clk 0:01:33]} 28. Qg4 {[%clk 0:00:47]}  Qxe5 {[%clk 0:01:28]} 29. Be4 {[%clk 0:00:33]}  Bxe4 {[%clk 0:01:24]} 30. fxe4 {[%clk 0:00:34]}  Qxc3 {[%clk 0:01:20]} 31. Rd7 {[%clk 0:00:28]}  Qe1+ {[%clk 0:01:15]} 32. Kg2 {[%clk 0:00:28]}  Qf1+ {[%clk 0:01:10]} 33. Kg3 {[%clk 0:00:27]}  Rg8 {[%clk 0:01:04]} 34. Rd8 {[%clk 0:00:27]}  Qg1+ {[%clk 0:01:01]} 35. Kf4 {[%clk 0:00:26]}  Qxg4+ {[%clk 0:01:01]} 0-1


[Site "https://www.chess.com"]

[Event "Titled Tuesday Blitz November 08 Early 2022"]
[White "Lucas, Arthur"]
[Black "Beerdsen, Thomas"]
[WhiteFideId "26093073"]
[BlackFideId "1030108"]
[WhiteElo "2251"]
[BlackElo "2567"]
[Result "0-1"]
[Round "03"]
[TimeControl "180+1"]
[Date "2022.11.09"]
[WhiteClock "0:00:01"]
[BlackClock "0:01:18"]

1. Nf3 {[%clk 0:02:58]}  h6 {[%clk 0:02:59]} 2. e4 {[%clk 0:02:57]}  g5 {[%clk 0:03:00]} 3. d4 {[%clk 0:02:58]}  g4 {[%clk 0:02:58]} 4. Nh4 {[%clk 0:02:51]}  h5 {[%clk 0:02:56]} 5. Nc3 {[%clk 0:02:47]}  e6 {[%clk 0:02:53]} 6. g3 {[%clk 0:02:47]}  Be7 {[%clk 0:02:50]} 7. Bf4 {[%clk 0:02:39]}  a6 {[%clk 0:02:43]} 8. Qd2 {[%clk 0:02:26]}  b5 {[%clk 0:02:42]} 9. Bg2 {[%clk 0:02:25]}  Bb7 {[%clk 0:02:42]} 10. O-O-O {[%clk 0:02:23]}  b4 {[%clk 0:02:38]} 11. Ne2 {[%clk 0:02:20]}  Nf6 {[%clk 0:02:35]} 12. d5 {[%clk 0:02:12]}  a5 {[%clk 0:02:22]} 13. h3 {[%clk 0:02:03]}  Na6 {[%clk 0:02:19]} 14. hxg4 {[%clk 0:02:03]}  Nxg4 {[%clk 0:02:20]} 15. Nd4 {[%clk 0:01:58]}  e5 {[%clk 0:02:17]} 16. f3 {[%clk 0:01:37]}  exf4 {[%clk 0:02:17]} 17. fxg4 {[%clk 0:01:37]}  fxg3 {[%clk 0:02:18]} 18. Nhf3 {[%clk 0:01:31]}  Nc5 {[%clk 0:02:11]} 19. Nf5 {[%clk 0:01:19]}  d6 {[%clk 0:01:47]} 20. Rxh5 {[%clk 0:00:58]}  Rxh5 {[%clk 0:01:41]} 21. gxh5 {[%clk 0:00:57]}  Bf6 {[%clk 0:01:34]} 22. h6 {[%clk 0:00:49]}  b3 {[%clk 0:01:34]} 23. cxb3 {[%clk 0:00:43]}  a4 {[%clk 0:01:34]} 24. b4 {[%clk 0:00:41]}  a3 {[%clk 0:01:34]} 25. bxc5 {[%clk 0:00:34]}  axb2+ {[%clk 0:01:35]} 26. Kb1 {[%clk 0:00:35]}  Rxa2 {[%clk 0:01:36]} 27. Kxa2 {[%clk 0:00:31]}  Qa8+ {[%clk 0:01:34]} 28. Kb3 {[%clk 0:00:31]}  Ba6 {[%clk 0:01:34]} 29. Qb4 {[%clk 0:00:20]}  Bd3 {[%clk 0:01:32]} 30. Qa4+ {[%clk 0:00:11]}  Qxa4+ {[%clk 0:01:30]} 31. Kxa4 {[%clk 0:00:12]}  Bc2+ {[%clk 0:01:29]} 32. Ka3 {[%clk 0:00:13]}  Bxd1 {[%clk 0:01:29]} 33. Nd2 {[%clk 0:00:13]}  dxc5 {[%clk 0:01:19]} 34. Ka2 {[%clk 0:00:07]}  c4 {[%clk 0:01:17]} 35. Nxc4 {[%clk 0:00:01]}  Bb3+ {[%clk 0:01:18]} 36. Kb1 {[%clk 0:00:01]}  Bxc4 {[%clk 0:01:18]} 0-1


[Site "https://www.chess.com"]

[Event "Titled Tuesday Blitz November 08 Early 2022"]
[White "Madaminov, Mukhiddin"]
[Black "Jaskolka, Tomasz"]
[WhiteFideId "14210703"]
[BlackFideId "1170791"]
[WhiteElo "2341"]
[BlackElo "2126"]
[Result "1-0"]
[Round "03"]
[TimeControl "180+1"]
[Date "2022.11.09"]
[WhiteClock "0:02:24"]
[BlackClock "0:00:19"]

1. d4 {[%clk 0:03:00]}  d5 {[%clk 0:02:58]} 2. Nc3 {[%clk 0:03:01]}  Nf6 {[%clk 0:02:57]} 3. Bf4 {[%clk 0:03:01]}  c6 {[%clk 0:02:57]} 4. e3 {[%clk 0:03:01]}  Qb6 {[%clk 0:02:57]} 5. a3 {[%clk 0:02:59]}  Bf5 {[%clk 0:02:54]} 6. Bd3 {[%clk 0:02:58]}  Bxd3 {[%clk 0:02:46]} 7. Qxd3 {[%clk 0:02:59]}  Qxb2 {[%clk 0:02:40]} 8. Rb1 {[%clk 0:02:58]}  Qxa3 {[%clk 0:02:40]} 9. Rxb7 {[%clk 0:02:59]}  Qc1+ {[%clk 0:02:22]} 10. Ke2 {[%clk 0:02:44]}  Nbd7 {[%clk 0:02:18]} 11. Rb1 {[%clk 0:02:43]}  Qa3 {[%clk 0:02:17]} 12. Nf3 {[%clk 0:02:44]}  e6 {[%clk 0:02:13]} 13. Ra1 {[%clk 0:02:44]}  Qe7 {[%clk 0:02:10]} 14. Rhb1 {[%clk 0:02:44]}  Nh5 {[%clk 0:01:36]} 15. Rb7 {[%clk 0:02:42]}  Nxf4+ {[%clk 0:01:36]} 16. exf4 {[%clk 0:02:43]}  Qd6 {[%clk 0:01:15]} 17. Ne5 {[%clk 0:02:42]}  Nxe5 {[%clk 0:01:10]} 18. fxe5 {[%clk 0:02:42]}  Qd8 {[%clk 0:01:07]} 19. Qa6 {[%clk 0:02:39]}  Qc8 {[%clk 0:01:03]} 20. Rxa7 {[%clk 0:02:38]}  Qxa6+ {[%clk 0:01:02]} 21. R1xa6 {[%clk 0:02:37]}  Rxa7 {[%clk 0:00:53]} 22. Rxa7 {[%clk 0:02:38]}  Be7 {[%clk 0:00:54]} 23. Na4 {[%clk 0:02:25]}  Bd8 {[%clk 0:00:35]} 24. Nc5 {[%clk 0:02:24]}  O-O {[%clk 0:00:34]} 25. Nd7 {[%clk 0:02:24]}  Re8 {[%clk 0:00:34]} 26. Ra8 {[%clk 0:02:25]}  f6 {[%clk 0:00:23]} 27. exf6 {[%clk 0:02:24]}  Kf7 {[%clk 0:00:23]} 28. Ne5+ {[%clk 0:02:23]}  Kf8 {[%clk 0:00:19]} 29. f7 {[%clk 0:02:23]}  Re7 {[%clk 0:00:18]} 30. Rxd8+ {[%clk 0:02:23]}  Re8 {[%clk 0:00:19]} 31. Rxe8# {[%clk 0:02:24]} 1-0


[Site "https://www.chess.com"]

[Event "Titled Tuesday Blitz November 08 Early 2022"]
[White "Manukian, Artak"]
[Black "Shapiro, Daniel"]
[WhiteFideId "13301373"]
[BlackFideId "2001780"]
[WhiteElo "2130"]
[BlackElo "2311"]
[Result "1-0"]
[Round "03"]
[TimeControl "180+1"]
[Date "2022.11.09"]
[WhiteClock "0:00:16"]
[BlackClock "0:00:01"]

1. e4 {[%clk 0:03:00]}  e5 {[%clk 0:02:56]} 2. Nf3 {[%clk 0:03:00]}  Nc6 {[%clk 0:02:55]} 3. d4 {[%clk 0:03:00]}  exd4 {[%clk 0:02:54]} 4. Nxd4 {[%clk 0:03:01]}  d6 {[%clk 0:02:54]} 5. Nxc6 {[%clk 0:03:01]}  bxc6 {[%clk 0:02:53]} 6. Bc4 {[%clk 0:03:02]}  Nf6 {[%clk 0:02:45]} 7. Nc3 {[%clk 0:02:59]}  Be7 {[%clk 0:02:43]} 8. O-O {[%clk 0:02:49]}  O-O {[%clk 0:02:42]} 9. Bg5 {[%clk 0:02:45]}  Be6 {[%clk 0:02:37]} 10. Qe2 {[%clk 0:02:44]}  d5 {[%clk 0:02:28]} 11. Bd3 {[%clk 0:02:38]}  Nxe4 {[%clk 0:02:11]} 12. Nxe4 {[%clk 0:02:11]}  Bxg5 {[%clk 0:02:11]} 13. Nc5 {[%clk 0:02:11]}  Re8 {[%clk 0:01:44]} 14. Nxe6 {[%clk 0:01:58]}  Rxe6 {[%clk 0:01:28]} 15. Qg4 {[%clk 0:01:47]}  Bf6 {[%clk 0:01:20]} 16. Rab1 {[%clk 0:01:44]}  Rb8 {[%clk 0:01:17]} 17. b3 {[%clk 0:01:42]}  Qe7 {[%clk 0:01:11]} 18. Qa4 {[%clk 0:01:30]}  Qc5 {[%clk 0:00:56]} 19. g3 {[%clk 0:01:10]}  Bd4 {[%clk 0:00:53]} 20. Rbd1 {[%clk 0:00:58]}  Bc3 {[%clk 0:00:33]} 21. Kg2 {[%clk 0:00:42]}  a5 {[%clk 0:00:32]} 22. Qg4 {[%clk 0:00:37]}  Rbe8 {[%clk 0:00:21]} 23. h4 {[%clk 0:00:25]}  g6 {[%clk 0:00:20]} 24. h5 {[%clk 0:00:25]}  Rf6 {[%clk 0:00:16]} 25. hxg6 {[%clk 0:00:25]}  fxg6 {[%clk 0:00:14]} 26. f4 {[%clk 0:00:21]}  Qe7 {[%clk 0:00:11]} 27. Qf3 {[%clk 0:00:18]}  Qe3 {[%clk 0:00:10]} 28. Qxe3 {[%clk 0:00:16]}  Rxe3 {[%clk 0:00:10]} 29. Rf3 {[%clk 0:00:17]}  Rfe6 {[%clk 0:00:09]} 30. Rxe3 {[%clk 0:00:17]}  Rxe3 {[%clk 0:00:09]} 31. Rf1 {[%clk 0:00:18]}  Re7 {[%clk 0:00:07]} 32. f5 {[%clk 0:00:18]}  gxf5 {[%clk 0:00:06]} 33. Rxf5 {[%clk 0:00:19]}  Rg7 {[%clk 0:00:05]} 34. a4 {[%clk 0:00:18]}  Bb4 {[%clk 0:00:04]} 35. Kf3 {[%clk 0:00:16]}  Bd6 {[%clk 0:00:04]} 36. g4 {[%clk 0:00:17]}  Re7 {[%clk 0:00:04]} 37. g5 {[%clk 0:00:16]}  Kg7 {[%clk 0:00:03]} 38. Kg4 {[%clk 0:00:15]}  Re5 {[%clk 0:00:03]} 39. Rxe5 {[%clk 0:00:15]}  Bxe5 {[%clk 0:00:03]} 40. Bf5 {[%clk 0:00:15]}  Bd4 {[%clk 0:00:02]} 41. Bd7 {[%clk 0:00:15]}  c5 {[%clk 0:00:02]} 42. Bc6 {[%clk 0:00:15]}  c4 {[%clk 0:00:01]} 43. Bxd5 {[%clk 0:00:15]}  cxb3 {[%clk 0:00:01]} 44. cxb3 {[%clk 0:00:16]}  Bc5 {[%clk 0:00:01]} 45. Kf5 {[%clk 0:00:16]}  Bd6 {[%clk 0:00:01]} 46. Be4 {[%clk 0:00:16]}  Bb4 {[%clk 0:00:01]} 47. Kg4 {[%clk 0:00:16]}  Bd2 {[%clk 0:00:01]} 48. Kh5 {[%clk 0:00:15]}  Bc1 {[%clk 0:00:01]} 49. g6 {[%clk 0:00:16]} 1-0


[Site "https://www.chess.com"]

[Event "Titled Tuesday Blitz November 08 Early 2022"]
[White "Martin, Lewis"]
[Black "Bodnaruk, Anastasia"]
[WhiteFideId "410551"]
[BlackFideId "4181751"]
[WhiteElo "2145"]
[BlackElo "2319"]
[Result "0-1"]
[Round "03"]
[TimeControl "180+1"]
[Date "2022.11.09"]
[WhiteClock "0:00:10"]
[BlackClock "0:00:27"]

1. e4 {[%clk 0:03:00]}  c5 {[%clk 0:02:59]} 2. Nf3 {[%clk 0:03:01]}  d6 {[%clk 0:02:59]} 3. d4 {[%clk 0:03:01]}  cxd4 {[%clk 0:03:00]} 4. Nxd4 {[%clk 0:03:02]}  Nf6 {[%clk 0:03:00]} 5. Nc3 {[%clk 0:03:03]}  a6 {[%clk 0:03:01]} 6. Bg5 {[%clk 0:03:03]}  Nbd7 {[%clk 0:03:00]} 7. Qe2 {[%clk 0:03:03]}  e6 {[%clk 0:02:55]} 8. O-O-O {[%clk 0:03:01]}  Qc7 {[%clk 0:02:55]} 9. f4 {[%clk 0:02:55]}  Be7 {[%clk 0:02:51]} 10. g4 {[%clk 0:02:43]}  b5 {[%clk 0:02:44]} 11. Bg2 {[%clk 0:02:42]}  Bb7 {[%clk 0:02:36]} 12. Rhe1 {[%clk 0:02:40]}  b4 {[%clk 0:02:27]} 13. Nd5 {[%clk 0:02:39]}  exd5 {[%clk 0:02:17]} 14. exd5 {[%clk 0:02:39]}  O-O {[%clk 0:02:16]} 15. Qxe7 {[%clk 0:02:24]}  Rae8 {[%clk 0:02:16]} 16. Bxf6 {[%clk 0:02:17]}  Rxe7 {[%clk 0:02:14]} 17. Bxe7 {[%clk 0:02:17]}  Rc8 {[%clk 0:02:10]} 18. Nc6 {[%clk 0:01:53]}  Nb8 {[%clk 0:02:07]} 19. Nd4 {[%clk 0:01:18]}  Qa5 {[%clk 0:01:48]} 20. Kb1 {[%clk 0:01:14]}  Qc5 {[%clk 0:01:34]} 21. Rd2 {[%clk 0:01:06]}  Bxd5 {[%clk 0:01:29]} 22. Bxd5 {[%clk 0:01:00]}  Qxd5 {[%clk 0:01:29]} 23. Nb3 {[%clk 0:00:54]}  Qf3 {[%clk 0:01:29]} 24. Bxd6 {[%clk 0:00:50]}  Nc6 {[%clk 0:01:25]} 25. g5 {[%clk 0:00:46]}  a5 {[%clk 0:01:21]} 26. Nc1 {[%clk 0:00:39]}  a4 {[%clk 0:01:16]} 27. Rde2 {[%clk 0:00:38]}  f5 {[%clk 0:01:03]} 28. gxf6 {[%clk 0:00:35]}  gxf6 {[%clk 0:01:01]} 29. Re8+ {[%clk 0:00:35]}  Rxe8 {[%clk 0:01:01]} 30. Rxe8+ {[%clk 0:00:35]}  Kf7 {[%clk 0:01:02]} 31. Re1 {[%clk 0:00:33]}  a3 {[%clk 0:00:52]} 32. bxa3 {[%clk 0:00:30]}  bxa3 {[%clk 0:00:49]} 33. Nb3 {[%clk 0:00:28]}  Qc3 {[%clk 0:00:45]} 34. Bxa3 {[%clk 0:00:17]}  Qxe1+ {[%clk 0:00:45]} 35. Bc1 {[%clk 0:00:17]}  Nb4 {[%clk 0:00:42]} 36. a3 {[%clk 0:00:16]}  Nd5 {[%clk 0:00:40]} 37. Ka2 {[%clk 0:00:14]}  Nc3+ {[%clk 0:00:40]} 38. Kb2 {[%clk 0:00:15]}  Ne2 {[%clk 0:00:39]} 39. Bd2 {[%clk 0:00:15]}  Qg1 {[%clk 0:00:38]} 40. a4 {[%clk 0:00:14]}  Qxh2 {[%clk 0:00:32]} 41. a5 {[%clk 0:00:15]}  Qf2 {[%clk 0:00:32]} 42. a6 {[%clk 0:00:13]}  h5 {[%clk 0:00:32]} 43. Bb4 {[%clk 0:00:13]}  h4 {[%clk 0:00:26]} 44. Bc5 {[%clk 0:00:13]}  Qf3 {[%clk 0:00:27]} 45. a7 {[%clk 0:00:13]}  h3 {[%clk 0:00:27]} 46. Nd2 {[%clk 0:00:10]}  Qb7+ {[%clk 0:00:27]} 0-1


[Site "https://www.chess.com"]

[Event "Titled Tuesday Blitz November 08 Early 2022"]
[White "Matveeva, Olga"]
[Black "Roque Sola, Jose Luis"]
[WhiteFideId "24107018"]
[BlackFideId "5120390"]
[WhiteElo "2055"]
[BlackElo "2117"]
[Result "1-0"]
[Round "03"]
[TimeControl "180+1"]
[Date "2022.11.09"]
[WhiteClock "0:01:28"]
[BlackClock "0:00:01"]

1. d4 {[%clk 0:03:00]}  Nf6 {[%clk 0:02:59]} 2. c4 {[%clk 0:03:01]}  g6 {[%clk 0:02:58]} 3. Nf3 {[%clk 0:03:00]}  Bg7 {[%clk 0:02:57]} 4. g3 {[%clk 0:03:00]}  O-O {[%clk 0:02:57]} 5. Bg2 {[%clk 0:03:01]}  d5 {[%clk 0:02:44]} 6. cxd5 {[%clk 0:03:00]}  Nxd5 {[%clk 0:02:44]} 7. Nc3 {[%clk 0:03:01]}  c5 {[%clk 0:02:30]} 8. e4 {[%clk 0:02:48]}  Nxc3 {[%clk 0:02:13]} 9. bxc3 {[%clk 0:02:49]}  Nc6 {[%clk 0:02:10]} 10. d5 {[%clk 0:02:42]}  Bxc3+ {[%clk 0:01:58]} 11. Bd2 {[%clk 0:02:42]}  Bxd2+ {[%clk 0:01:49]} 12. Qxd2 {[%clk 0:02:40]}  Nb4 {[%clk 0:01:44]} 13. a3 {[%clk 0:02:35]}  Na6 {[%clk 0:01:43]} 14. O-O {[%clk 0:02:34]}  Bd7 {[%clk 0:01:23]} 15. Qh6 {[%clk 0:02:32]}  f6 {[%clk 0:01:11]} 16. e5 {[%clk 0:02:31]}  Bg4 {[%clk 0:01:00]} 17. Nh4 {[%clk 0:02:11]}  fxe5 {[%clk 0:00:29]} 18. Nxg6 {[%clk 0:02:10]}  Rf6 {[%clk 0:00:11]} 19. Nxe7+ {[%clk 0:01:54]}  Qxe7 {[%clk 0:00:11]} 20. Qg5+ {[%clk 0:01:54]}  Qg7 {[%clk 0:00:10]} 21. Qxe5 {[%clk 0:01:54]}  Raf8 {[%clk 0:00:06]} 22. d6 {[%clk 0:01:51]}  Bd7 {[%clk 0:00:05]} 23. Bxb7 {[%clk 0:01:48]}  Nb8 {[%clk 0:00:03]} 24. Bd5+ {[%clk 0:01:47]}  Kh8 {[%clk 0:00:02]} 25. f4 {[%clk 0:01:44]}  Rg6 {[%clk 0:00:01]} 26. Rac1 {[%clk 0:01:28]}  Qxe5 {[%clk 0:00:01]} 27. fxe5 {[%clk 0:01:28]} 1-0


[Site "https://www.chess.com"]

[Event "Titled Tuesday Blitz November 08 Early 2022"]
[White "Mazzilli, Piero"]
[Black "Schmidt, Tobias"]
[WhiteFideId "807087"]
[BlackFideId "1271683"]
[WhiteElo "2256"]
[BlackElo "2328"]
[Result "1-0"]
[Round "03"]
[TimeControl "180+1"]
[Date "2022.11.09"]
[WhiteClock "0:00:11"]
[BlackClock "0:00:01"]

1. e4 {[%clk 0:03:00]}  g5 {[%clk 0:02:53]} 2. d4 {[%clk 0:03:00]}  h6 {[%clk 0:02:49]} 3. h4 {[%clk 0:02:59]}  g4 {[%clk 0:02:49]} 4. Qxg4 {[%clk 0:02:53]}  d5 {[%clk 0:02:49]} 5. Qe2 {[%clk 0:02:51]}  dxe4 {[%clk 0:02:47]} 6. Qxe4 {[%clk 0:02:51]}  Nf6 {[%clk 0:02:46]} 7. Qd3 {[%clk 0:02:50]}  Nc6 {[%clk 0:02:42]} 8. Nf3 {[%clk 0:02:45]}  Bg4 {[%clk 0:02:41]} 9. c3 {[%clk 0:02:44]}  Qd7 {[%clk 0:02:29]} 10. Bf4 {[%clk 0:02:31]}  O-O-O {[%clk 0:02:25]} 11. Ne5 {[%clk 0:02:29]}  Nxe5 {[%clk 0:02:19]} 12. Bxe5 {[%clk 0:01:55]}  Bf5 {[%clk 0:02:17]} 13. Qb5 {[%clk 0:01:50]}  Rg8 {[%clk 0:02:02]} 14. Bxf6 {[%clk 0:01:29]}  exf6 {[%clk 0:01:54]} 15. Qxd7+ {[%clk 0:01:28]}  Rxd7 {[%clk 0:01:55]} 16. Nd2 {[%clk 0:01:27]}  Bd6 {[%clk 0:01:51]} 17. g3 {[%clk 0:01:23]}  Re8+ {[%clk 0:01:49]} 18. Kd1 {[%clk 0:01:23]}  a5 {[%clk 0:01:42]} 19. Bc4 {[%clk 0:01:14]}  c6 {[%clk 0:01:40]} 20. a4 {[%clk 0:01:13]}  Bc7 {[%clk 0:01:35]} 21. Rg1 {[%clk 0:01:07]}  Rde7 {[%clk 0:01:27]} 22. Nb3 {[%clk 0:00:27]}  Bg4+ {[%clk 0:01:08]} 23. Kd2 {[%clk 0:00:25]}  Be2 {[%clk 0:01:05]} 24. Bd3 {[%clk 0:00:21]}  Bf3 {[%clk 0:00:57]} 25. Rae1 {[%clk 0:00:19]}  b6 {[%clk 0:00:53]} 26. Rxe7 {[%clk 0:00:18]}  Rxe7 {[%clk 0:00:53]} 27. Re1 {[%clk 0:00:19]}  Kd8 {[%clk 0:00:53]} 28. Rxe7 {[%clk 0:00:18]}  Kxe7 {[%clk 0:00:54]} 29. Nc1 {[%clk 0:00:18]}  Ke6 {[%clk 0:00:50]} 30. Ke3 {[%clk 0:00:18]}  Bd1 {[%clk 0:00:49]} 31. Be4 {[%clk 0:00:18]}  c5 {[%clk 0:00:40]} 32. dxc5 {[%clk 0:00:17]}  bxc5 {[%clk 0:00:39]} 33. b3 {[%clk 0:00:17]}  Be5 {[%clk 0:00:35]} 34. Kd2 {[%clk 0:00:16]}  Bg4 {[%clk 0:00:32]} 35. f4 {[%clk 0:00:17]}  Bc7 {[%clk 0:00:31]} 36. Nd3 {[%clk 0:00:17]}  Kd6 {[%clk 0:00:30]} 37. Nb2 {[%clk 0:00:16]}  Be6 {[%clk 0:00:30]} 38. Bc2 {[%clk 0:00:15]}  Bd5 {[%clk 0:00:28]} 39. Kd3 {[%clk 0:00:14]}  Be6 {[%clk 0:00:25]} 40. Nc4+ {[%clk 0:00:15]}  Kc6 {[%clk 0:00:24]} 41. Ne3 {[%clk 0:00:15]}  Bd7 {[%clk 0:00:22]} 42. Bd1 {[%clk 0:00:12]}  Kd6 {[%clk 0:00:19]} 43. Bg4 {[%clk 0:00:12]}  Bc6 {[%clk 0:00:17]} 44. c4 {[%clk 0:00:11]}  Bh1 {[%clk 0:00:16]} 45. Nf5+ {[%clk 0:00:12]}  Kc6 {[%clk 0:00:14]} 46. Nxh6 {[%clk 0:00:13]}  Bg2 {[%clk 0:00:14]} 47. Nxf7 {[%clk 0:00:13]}  Bf1+ {[%clk 0:00:14]} 48. Kc3 {[%clk 0:00:12]}  Bg2 {[%clk 0:00:12]} 49. h5 {[%clk 0:00:12]}  Be4 {[%clk 0:00:12]} 50. f5 {[%clk 0:00:13]}  Bxg3 {[%clk 0:00:10]} 51. h6 {[%clk 0:00:12]}  Be1+ {[%clk 0:00:10]} 52. Kb2 {[%clk 0:00:13]}  Bf2 {[%clk 0:00:04]} 53. h7 {[%clk 0:00:12]}  Bd4+ {[%clk 0:00:04]} 54. Ka2 {[%clk 0:00:12]}  Bc2 {[%clk 0:00:01]} 55. h8=Q {[%clk 0:00:11]} 1-0


[Site "https://www.chess.com"]